fUSD/lending_fUSD_20240118
["ID","MTS","AMOUNT","RATE_DAILY","PERIOD"]
[312006804,1705543840318,-513.16980302,0.00021917,2]
[312006806,1705543840327,-530.2018886,0.00021917,2]
[312006808,1705543840337,-506.17016013,0.00021917,2]
[312006810,1705543840346,-500.0,0.00021917,2]
[312006812,1705543840355,-500.0,0.00021917,2]
[312006814,1705543840366,-500.0,0.00021917,2]
[312006816,1705543840375,-518.65110504,0.00021917,2]
[312006818,1705543840384,-500.0,0.00021917,2]
[312006819,1705543840393,-500.0,0.00021917,2]
[312006822,1705543840402,-500.0,0.00021917,2]
[312006823,1705543840411,-583.86582163,0.00021917,2]
[312006825,1705543840420,-500.0,0.00021917,2]
[312006827,1705543840430,-507.90722772,0.00021917,2]
[312006829,1705543840439,-500.0,0.00021917,2]
[312006831,1705543840448,-509.51792545,0.00021917,2]
[312006833,1705543840457,-518.2857072,0.00021917,2]
[312006835,1705543840466,-510.05230146,0.00021917,2]
[312006837,1705543840475,-500.0,0.00021917,2]
[312006839,1705543840484,-514.48142137,0.00021917,2]
[312006841,1705543840494,-525.15774226,0.00021917,2]
[312006843,1705543840503,-500.0,0.00021917,2]
[312006845,1705543840512,-505.55386665,0.00021917,2]
[312006847,1705543840521,-500.0,0.00021917,2]
[312006849,1705543840530,-508.34093826,0.00021917,2]
[312006852,1705543840540,-500.0,0.00021917,2]
[312006854,1705543840550,-500.0,0.00021917,2]
[312006856,1705543840559,-500.0,0.00021917,2]
[312006858,1705543840568,-500.0,0.00021917,2]
[312006859,1705543840577,-500.0,0.00021917,2]
[312006861,1705543840589,-500.0,0.00021917,2]
[312006862,1705543840598,-500.0,0.00021917,2]
[312006863,1705543840607,-510.18674974,0.00021917,2]
[312006864,1705543840616,-500.0,0.00021917,2]
[312006865,1705543840626,-513.62568832,0.00021917,2]
[312006866,1705543840635,-500.0,0.00021917,2]
[312006868,1705543840645,-569.40816248,0.00021917,2]
[312006872,1705543840654,-507.6042951,0.00021917,2]
[312006876,1705543840663,-500.0,0.00021917,2]
[312006880,1705543840672,-500.0,0.00021917,2]
[312006884,1705543840681,-500.0,0.00021917,2]
[312006888,1705543840690,-500.0,0.00021917,2]
[312006892,1705543840700,-500.0,0.00021917,2]
[312006895,1705543840709,-500.0,0.00021917,2]
[312006898,1705543840718,-545.72389688,0.00021917,2]
[312006901,1705543840727,-510.28815247,0.00021917,2]
[312006904,1705543840736,-515.14323398,0.00021917,2]
[312006907,1705543840745,-510.33361661,0.00021917,2]
[312006910,1705543840754,-500.0,0.00021917,2]
[312006912,1705543840763,-500.0,0.00021917,2]
[312006914,1705543840772,-500.0,0.00021917,2]
[312006916,1705543840781,-514.08936801,0.00021917,2]
[312006919,1705543840790,-500.0,0.00021917,2]
[312006922,1705543840800,-524.52821142,0.00021917,2]
[312006925,1705543840808,-500.0,0.00021917,2]
[312006928,1705543840817,-500.0,0.00021917,2]
[312006931,1705543840827,-342.61626047,0.00021917,2]
[312006934,1705543840836,-505.81920632,0.00021917,2]
[312006937,1705543840845,-505.16162847,0.00021917,2]
[312006940,1705543840854,-512.49778666,0.00021917,2]
[312006943,1705543840864,-500.0,0.00021917,2]
[312006946,1705543840873,-247.07051065,0.00021917,2]
[312006949,1705543840882,-510.17770182,0.00021917,2]
[312006952,1705543840891,-500.0,0.00021917,2]
[312006955,1705543840900,-521.00289068,0.00021917,2]
[312006958,1705543840909,-509.95381814,0.00021917,2]
[312006961,1705543840918,-500.0,0.00021917,2]
[312006964,1705543840927,-500.0,0.00021917,2]
[312006967,1705543840936,-500.0,0.00021917,2]
[312006970,1705543840945,-500.0,0.00021917,2]
[312006973,1705543840955,-513.03942414,0.00021917,2]
[312006976,1705543840964,-513.67904954,0.00021917,2]
[312006979,1705543840973,-507.07808165,0.00021917,2]
[312006982,1705543840982,-497.25134917,0.00021917,2]
[312006985,1705543840992,-500.0,0.00021917,2]
[312006988,1705543841001,-513.15177371,0.00021917,2]
[312006991,1705543841010,-526.21256991,0.00021917,2]
[312006994,1705543841020,-500.0,0.00021917,2]
[312006997,1705543841029,-500.0,0.00021917,2]
[312007000,1705543841038,-500.0,0.00021917,2]
[312007002,1705543841048,-514.43329017,0.00021917,2]
[312007004,1705543841060,-500.0,0.00021917,2]
[312007007,1705543841070,-308.6665726,0.00021917,2]
[312007009,1705543841079,-500.0,0.00021917,2]
[312007011,1705543841089,-503.76862608,0.00021917,2]
[312007012,1705543841098,-500.0,0.00021917,2]
[312007015,1705543841107,-500.0,0.00021917,2]
[312007017,1705543841117,-500.0,0.00021917,2]
[312007019,1705543841126,-527.69569743,0.00021917,2]
[312007021,1705543841135,-524.38471533,0.00021917,2]
[312007022,1705543841144,-1045.55,0.00021917,2]
[312007025,1705543841154,-501.63197879,0.00021917,2]
[312007027,1705543841163,-500.0,0.00021917,2]
[312007029,1705543841174,-500.0,0.00021917,2]
[312007031,1705543841182,-504.07115527,0.00021917,2]
[312007032,1705543841192,-500.0,0.00021917,2]
[312007035,1705543841201,-500.0,0.00021917,2]
[312007037,1705543841210,-500.0,0.00021917,2]
[312007038,1705543841219,-500.0,0.00021917,2]
[312007040,1705543841228,-537.24722248,0.00021917,2]
[312007042,1705543841238,-500.0,0.00021917,2]
[312007044,1705543841247,-525.73440044,0.00021917,2]
[312007046,1705543841257,-500.0,0.00021917,2]
[312007048,1705543841266,-518.91921361,0.00021917,2]
[312007050,1705543841276,-500.0,0.00021917,2]
[312007052,1705543841285,-500.0,0.00021917,2]
[312007054,1705543841295,-500.0,0.00021917,2]
[312007056,1705543841305,-500.0,0.00021917,2]
[312007058,1705543841315,-511.97332597,0.00021917,2]
[312007061,1705543841325,-500.0,0.00021917,2]
[312007062,1705543841335,-500.0,0.00021917,2]
[312007065,1705543841345,-500.0,0.00021917,2]
[312007067,1705543841354,-500.0,0.00021917,2]
[312007069,1705543841365,-500.78950564,0.00021917,2]
[312007071,1705543841375,-500.0,0.00021917,2]
[312007072,1705543841385,-503.4304059,0.00021917,2]
[312007075,1705543841394,-500.0,0.00021917,2]
[312007077,1705543841405,-500.0,0.00021917,2]
[312007079,1705543841415,-500.0,0.00021917,2]
[312007081,1705543841425,-500.0,0.00021917,2]
[312007083,1705543841434,-500.0,0.00021917,2]
[312007085,1705543841444,-500.0,0.00021917,2]
[312007087,1705543841455,-503.00303064,0.00021917,2]
[312007089,1705543841464,-500.0,0.00021917,2]
[312007091,1705543841473,-504.81183455,0.00021917,2]
[312007093,1705543841483,-500.0,0.00021917,2]
[312007095,1705543841492,-500.0,0.00021917,2]
[312007097,1705543841502,-422.73485541,0.00021917,2]
[312007099,1705543841511,-507.33589789,0.00021917,2]
[312007101,1705543841520,-500.0,0.00021917,2]
[312007103,1705543841529,-500.0,0.00021917,2]
[312007105,1705543841538,-514.37608761,0.00021917,2]
[312007107,1705543841547,-500.0,0.00021917,2]
[312007109,1705543841556,-517.91997867,0.00021917,2]
[312007111,1705543841566,-500.0,0.00021917,2]
[312007113,1705543841576,-429.51217064,0.00021917,2]
[312007115,1705543841585,-500.0,0.00021917,2]
[312007117,1705543841594,-500.0,0.00021917,2]
[312007119,1705543841603,-500.0,0.00021917,2]
[312007121,1705543841613,-500.0,0.00021917,2]
[312007123,1705543841622,-500.0,0.00021917,2]
[312007125,1705543841631,-500.0,0.00021917,2]
[312007127,1705543841640,-500.0,0.00021917,2]
[312007129,1705543841650,-500.0,0.00021917,2]
[312007131,1705543841659,-500.0,0.00021917,2]
[312007133,1705543841668,-500.0,0.00021917,2]
[312007135,1705543841677,-500.0,0.00021917,2]
[312007137,1705543841686,-500.0,0.00021917,2]
[312007139,1705543841695,-462.08335293,0.00021917,2]
[312007141,1705543841704,-500.0,0.00021917,2]
[312007143,1705543841713,-500.0,0.00021917,2]
[312007145,1705543841725,-500.0,0.00021917,2]
[312007147,1705543841735,-514.38984664,0.00021917,2]
[312007149,1705543841744,-500.0,0.00021917,2]
[312007151,1705543841754,-506.55565267,0.00021917,2]
[312007153,1705543841764,-500.0,0.00021917,2]
[312007156,1705543841773,-500.0,0.00021917,2]
[312007158,1705543841782,-500.0,0.00021917,2]
[312007159,1705543841792,-500.0,0.00021917,2]
[312007161,1705543841801,-500.0,0.00021917,2]
[312007163,1705543841811,-514.65270892,0.00021917,2]
[312007166,1705543841821,-1017.90523307,0.00021917,2]
[312007167,1705543841830,-500.0,0.00021917,2]
[312007169,1705543841840,-500.0,0.00021917,2]
[312007171,1705543841849,-500.21969705,0.00021917,2]
[312007174,1705543841859,-500.0,0.00021917,2]
[312007176,1705543841868,-500.0,0.00021917,2]
[312007177,1705543841877,-508.79056603,0.00021917,2]
[312007179,1705543841886,-551.0900061,0.00021917,2]
[312007181,1705543841895,-743.5,0.00021917,2]
[312007183,1705543841905,-304.55643752,0.00021917,2]
[312007185,1705543841914,-500.0,0.00021917,2]
[312007188,1705543841923,-500.0,0.00021917,2]
[312007189,1705543841932,-504.6550327,0.00021917,2]
[312007190,1705543841942,-500.0,0.00021917,2]
[312007191,1705543841951,-500.0,0.00021917,2]
[312007192,1705543841960,-500.0,0.00021917,2]
[312007193,1705543841970,-500.0,0.00021917,2]
[312007194,1705543841979,-526.00684446,0.00021917,2]
[312007195,1705543841988,-500.0,0.00021917,7]
[312007196,1705543841998,-510.65994991,0.00021917,2]
[312007197,1705543842007,-371.12500343,0.00021917,2]
[312007198,1705543842016,-500.0,0.00021917,2]
[312007199,1705543842026,-501.87054657,0.00021917,2]
[312007200,1705543842035,-500.0,0.00021917,2]
[312007201,1705543842045,-500.0,0.00021917,2]
[312007202,1705543842054,-500.0,0.00021917,2]
[312007203,1705543842064,-528.9588068,0.00021917,2]
[312007204,1705543842075,-500.0,0.00021917,2]
[312007205,1705543842087,-500.0,0.00021917,2]
[312007207,1705543842096,-500.0,0.00021917,2]
[312007208,1705543842106,-500.0,0.00021917,2]
[312007209,1705543842116,-503.53757713,0.00021917,2]
[312007210,1705543842126,-500.0,0.00021917,2]
[312007211,1705543842136,-514.12569637,0.00021917,2]
[312007212,1705543842145,-500.0,0.00021917,2]
[312007213,1705543842155,-503.69257234,0.00021917,2]
[312007214,1705543842167,-500.0,0.00021917,2]
[312007215,1705543842177,-500.0,0.00021917,2]
[312007216,1705543842186,-500.0,0.00021917,2]
[312007217,1705543842197,-510.1175197,0.00021917,2]
[312007218,1705543842207,-484.2474137,0.00021917,2]
[312007219,1705543842217,-500.0,0.00021917,2]
[312007220,1705543842226,-520.04824444,0.00021917,2]
[312007221,1705543842236,-500.0,0.00021917,2]
[312007222,1705543842245,-500.0,0.00021917,2]
[312007224,1705543842254,-500.0,0.00021917,2]
[312007226,1705543842265,-500.0,0.00021917,2]
[312007228,1705543842274,-511.98566737,0.00021917,2]
[312007230,1705543842284,-500.0,0.00021917,2]
[312007232,1705543842293,-518.99830087,0.00021917,2]
[312007233,1705543842302,-505.46111707,0.00021917,2]
[312007235,1705543842313,-499.99657598,0.00021917,2]
[312007236,1705543842325,-500.0,0.00021917,2]
[312007237,1705543842335,-516.72706331,0.00021917,2]
[312007238,1705543842345,-500.0,0.00021917,2]
[312007239,1705543842355,-500.0,0.00021917,2]
[312007240,1705543842365,-496.93763316,0.00021917,2]
[312007241,1705543842374,-500.0,0.00021917,2]
[312007242,1705543842384,-500.0,0.00021917,2]
[312007243,1705543842394,-517.56843389,0.00021917,2]
[312007244,1705543842403,-516.13263893,0.00021917,2]
[312007245,1705543842413,-150.0,0.00021917,2]
[312007246,1705543842423,-500.0,0.00021917,2]
[312007247,1705543842433,-488.37395999,0.00021917,2]
[312007248,1705543842443,-500.0,0.00021917,2]
[312007249,1705543842452,-512.62481397,0.00021917,2]
[312007250,1705543842463,-500.0,0.00021917,2]
[312007251,1705543842473,-625.17473464,0.00021917,2]
[312007252,1705543842482,-500.0,0.00021917,2]
[312007253,1705543842491,-509.20791786,0.00021917,2]
[312007254,1705543842501,-500.0,0.00021917,2]
[312007255,1705543842510,-520.01836206,0.00021917,2]
[312007256,1705543842520,-500.0,0.00021917,2]
[312007257,1705543842529,-500.0,0.00021917,2]
[312007258,1705543842539,-500.0,0.00021917,2]
[312007259,1705543842548,-502.03551751,0.00021917,2]
[312007260,1705543842558,-511.69922331,0.00021917,2]
[312007261,1705543842567,-507.96603363,0.00021917,2]
[312007262,1705543842579,-500.0,0.00021917,2]
[312007263,1705543842588,-500.0,0.00021917,2]
[312007264,1705543842597,-500.0,0.00021917,2]
[312007265,1705543842607,-502.51849136,0.00021917,2]
[312007266,1705543842616,-512.24085671,0.00021917,2]
[312007267,1705543842625,-500.0,0.00021917,2]
[312007268,1705543842635,-500.0,0.00021917,2]
[312007269,1705543842645,-506.26526814,0.00021917,2]
[312007270,1705543842654,-500.0,0.00021917,2]
[312007271,1705543842664,-500.0,0.00021917,2]
[312007272,1705543842673,-500.0,0.00021917,2]
[312007273,1705543842684,-500.0,0.00021917,2]
[312007274,1705543842693,-500.0,0.00021917,2]
[312007275,1705543842703,-500.0,0.00021917,2]
[312007276,1705543842713,-500.0,0.00021917,2]
[312007277,1705543842722,-500.0,0.00021917,2]
[312007278,1705543842732,-500.0,0.00021917,2]
[312007279,1705543842741,-500.0,0.00021917,2]
[312007280,1705543842750,-507.46288957,0.00021917,2]
[312007281,1705543842760,-500.0,0.00021917,2]
[312007282,1705543842769,-500.0,0.00021917,2]
[312007283,1705543842778,-500.0,0.00021917,2]
[312007284,1705543842787,-500.0,0.00021917,2]
[312007285,1705543842796,-522.81303383,0.00021917,2]
[312007286,1705543842805,-517.39207607,0.00021917,2]
[312007287,1705543842815,-500.0,0.00021917,2]
[312007288,1705543842825,-684.11,0.00021917,2]
[312007289,1705543842835,-500.0,0.00021917,2]
[312007290,1705543842845,-271.97867342,0.00021917,2]
[312007291,1705543842854,-500.0,0.00021917,2]
[312007292,1705543842864,-508.53816718,0.00021917,2]
[312007293,1705543842873,-500.0,0.00021917,2]
[312007294,1705543842882,-500.0,0.00021917,2]
[312007295,1705543842892,-500.0,0.00021917,2]
[312007296,1705543842901,-516.55335596,0.00021917,2]
[312007297,1705543842910,-500.0,0.00021917,2]
[312007298,1705543842919,-506.37663048,0.00021917,2]
[312007299,1705543842928,-500.0,0.00021917,2]
[312007300,1705543842937,-517.84373026,0.00021917,2]
[312007301,1705543842947,-500.0,0.00021917,2]
[312007302,1705543842956,-500.0,0.00021917,2]
[312007303,1705543842965,-500.0,0.00021917,2]
[312007304,1705543842975,-507.3030958,0.00021917,2]
[312007305,1705543842984,-500.0,0.00021917,2]
[312007306,1705543842994,-512.82734413,0.00021917,2]
[312007307,1705543843003,-500.0,0.00021917,2]
[312007308,1705543843012,-576.93357129,0.00021917,2]
[312007309,1705543843022,-500.0,0.00021917,2]
[312007310,1705543843032,-500.0,0.00021917,2]
[312007311,1705543843041,-504.92628789,0.00021917,2]
[312007312,1705543843051,-516.94111101,0.00021917,2]
[312007313,1705543843060,-564.68402316,0.00021917,2]
[312007314,1705543843069,-500.0,0.00021917,2]
[312007315,1705543843079,-508.91434741,0.00021917,2]
[312007316,1705543843287,-500.0,0.00021917,2]
[312007317,1705543843298,-500.0,0.00021917,2]
[312007318,1705543843308,-500.0,0.00021917,2]
[312007319,1705543843317,-505.48896454,0.00021917,2]
[312007320,1705543843328,-500.0,0.00021917,2]
[312007321,1705543843337,-512.23402617,0.00021917,2]
[312007322,1705543843347,-515.91508745,0.00021917,2]
[312007323,1705543843357,-500.0,0.00021917,2]
[312007324,1705543843368,-509.79880018,0.00021917,2]
[312007325,1705543843378,-500.0,0.00021917,2]
[312007326,1705543843387,-500.0,0.00021917,2]
[312007327,1705543843397,-500.0,0.00021917,2]
[312007328,1705543843408,-511.76963303,0.00021917,2]
[312007329,1705543843417,-500.0,0.00021917,2]
[312007330,1705543843427,-500.0,0.00021917,2]
[312007331,1705543843437,-268.91241773,0.00021917,2]
[312007332,1705543843446,-500.0,0.00021917,2]
[312007333,1705543843456,-543.05126739,0.00021917,2]
[312007334,1705543843466,-518.69712721,0.00021917,2]
[312007335,1705543843475,-520.80074504,0.00021917,2]
[312007336,1705543843484,-500.0,0.00021917,2]
[312007337,1705543843493,-500.0,0.00021917,2]
[312007338,1705543843502,-500.0,0.00021917,2]
[312007340,1705543843512,-500.0,0.00021917,2]
[312007342,1705543843521,-500.0,0.00021917,2]
[312007344,1705543843530,-500.0,0.00021917,2]
[312007346,1705543843540,-499.2446387,0.00021917,2]
[312007348,1705543843549,-500.0,0.00021917,2]
[312007350,1705543843558,-521.89052989,0.00021917,2]
[312007352,1705543843568,-500.0,0.00021917,2]
[312007354,1705543843578,-500.0,0.00021917,2]
[312007356,1705543843587,-598.38,0.00021917,2]
[312007358,1705543843597,-500.0,0.00021917,2]
[312007360,1705543843606,-502.37709585,0.00021917,2]
[312007362,1705543843615,-500.0,0.00021917,2]
[312007364,1705543843624,-520.85052397,0.00021917,2]
[312007366,1705543843633,-500.0,0.00021917,2]
[312007368,1705543843643,-500.0,0.00021917,2]
[312007370,1705543843652,-500.0,0.00021917,2]
[312007372,1705543843661,-559.33383779,0.00021917,2]
[312007374,1705543843670,-500.0,0.00021917,2]
[312007376,1705543843679,-500.0,0.00021917,2]
[312007378,1705543843689,-511.21494896,0.00021917,2]
[312007380,1705543843698,-490.06493137,0.00021917,2]
[312007382,1705543843707,-500.0,0.00021917,2]
[312007384,1705543843716,-500.0,0.00021917,2]
[312007386,1705543843725,-500.0,0.00021917,2]
[312007388,1705543843734,-500.0,0.00021917,2]
[312007390,1705543843743,-516.03311958,0.00021917,2]
[312007392,1705543843752,-500.0,0.00021917,2]
[312007394,1705543843761,-500.0,0.00021917,2]
[312007396,1705543843770,-500.0,0.00021917,2]
[312007399,1705543843780,-500.0,0.00021917,2]
[312007401,1705543843789,-500.0,0.00021917,2]
[312007403,1705543843798,-523.65,0.00021917,2]
[312007405,1705543843807,-514.8516474,0.00021917,2]
[312007407,1705543843816,-500.0,0.00021917,2]
[312007409,1705543843826,-500.0,0.00021917,2]
[312007411,1705543843835,-500.0,0.00021917,2]
[312007413,1705543843844,-500.0,0.00021917,2]
[312007415,1705543843853,-520.83572149,0.00021917,2]
[312007417,1705543843862,-525.85829434,0.00021917,2]
[312007419,1705543843871,-500.0,0.00021917,2]
[312007421,1705543843880,-500.0,0.00021917,2]
[312007423,1705543843889,-515.83117625,0.00021917,2]
[312007425,1705543843899,-500.0,0.00021917,2]
[312007427,1705543843908,-500.0,0.00021917,2]
[312007429,1705543843917,-500.0,0.00021917,2]
[312007431,1705543843926,-500.0,0.00021917,2]
[312007433,1705543843940,-1522.51,0.00021917,2]
[312007435,1705543843949,-500.0,0.00021917,2]
[312007437,1705543843958,-551.81888516,0.00021917,2]
[312007439,1705543843968,-500.0,0.00021917,2]
[312007441,1705543843977,-1835.51,0.00021917,2]
[312007443,1705543843986,-516.5739633,0.00021917,2]
[312007445,1705543843995,-347.95846245,0.00021917,2]
[312007447,1705543844004,-161.97728972,0.00021917,2]
[312007449,1705543844013,-538.42966531,0.00021917,2]
[312007451,1705543844023,-500.0,0.00021917,2]
[312007453,1705543844031,-500.0,0.00021917,2]
[312007455,1705543844041,-209.49164246,0.00021917,2]
[312007457,1705543844050,-500.0,0.00021917,2]
[312007459,1705543844059,-500.0,0.00021917,2]
[312007461,1705543844068,-543.85611786,0.00021917,2]
[312007463,1705543844079,-500.0,0.00021917,2]
[312007465,1705543844089,-500.0,0.00021917,2]
[312007467,1705543844098,-500.0,0.00021917,2]
[312007469,1705543844107,-500.0,0.00021917,2]
[312007471,1705543844119,-502.92876392,0.00021917,2]
[312007472,1705543844128,-519.57119514,0.00021917,2]
[312007473,1705543844138,-520.07610055,0.00021917,2]
[312007474,1705543844147,-547.28533864,0.00021917,2]
[312007475,1705543844156,-500.0,0.00021917,2]
[312007476,1705543844165,-734.05,0.00021917,2]
[312007477,1705543844174,-500.0,0.00021917,2]
[312007478,1705543844183,-500.0,0.00021917,2]
[312007479,1705543844192,-500.0,0.00021917,2]
[312007480,1705543844201,-500.0,0.00021917,2]
[312007482,1705543844211,-505.18962362,0.00021917,2]
[312007484,1705543844220,-500.0,0.00021917,2]
[312007486,1705543844229,-500.0,0.00021917,2]
[312007488,1705543844238,-1014.42,0.00021917,2]
[312007490,1705543844248,-500.0,0.00021917,2]
[312007492,1705543844257,-503.60561927,0.00021917,2]
[312007495,1705543844267,-523.50033749,0.00021917,2]
[312007497,1705543844277,-511.14789204,0.00021917,2]
[312007498,1705543844286,-500.0,0.00021917,2]
[312007501,1705543844296,-500.0,0.00021917,2]
[312007503,1705543844306,-503.68091759,0.00021917,2]
[312007505,1705543844315,-500.0,0.00021917,2]
[312007507,1705543844325,-500.0,0.00021917,2]
[312007509,1705543844334,-512.80897461,0.00021917,2]
[312007511,1705543844343,-737.49,0.00021917,2]
[312007513,1705543844354,-500.0,0.00021917,2]
[312007515,1705543844365,-500.0,0.00021917,2]
[312007517,1705543844374,-500.0,0.00021917,2]
[312007519,1705543844383,-500.0,0.00021917,2]
[312007521,1705543844392,-651.65,0.00021917,2]
[312007523,1705543844402,-515.69896807,0.00021917,2]
[312007525,1705543844411,-1442.92,0.00021917,2]
[312007527,1705543844420,-500.0,0.00021917,2]
[312007529,1705543844429,-507.14218808,0.00021917,2]
[312007531,1705543844439,-500.0,0.00021917,2]
[312007533,1705543844448,-500.0,0.00021917,2]
[312007535,1705543844457,-357.92391645,0.00021917,2]
[312007537,1705543844466,-503.70777204,0.00021917,2]
[312007539,1705543844476,-515.1393545,0.00021917,2]
[312007541,1705543844485,-510.69432129,0.00021917,2]
[312007543,1705543844494,-500.0,0.00021917,2]
[312007545,1705543844503,-507.42553183,0.00021917,2]
[312007547,1705543844512,-503.10188719,0.00021917,2]
[312007549,1705543844521,-475.51063344,0.00021917,2]
[312007551,1705543844531,-500.0,0.00021917,2]
[312007553,1705543844540,-500.0,0.00021917,2]
[312007555,1705543844549,-500.0,0.00021917,2]
[312007557,1705543844558,-500.0,0.00021917,2]
[312007559,1705543844567,-614.9415743,0.00021917,2]
[312007561,1705543844580,-509.04953353,0.00021917,2]
[312007563,1705543844590,-500.0,0.00021917,2]
[312007566,1705543844599,-500.0,0.00021917,2]
[312007568,1705543844608,-500.0,0.00021917,2]
[312007570,1705543844617,-620.61,0.00021917,2]
[312007572,1705543844626,-509.51917262,0.00021917,2]
[312007574,1705543844635,-500.0,0.00021917,2]
[312007576,1705543844644,-500.0,0.00021917,2]
[312007578,1705543844653,-500.0,0.00021917,2]
[312007580,1705543844662,-513.82630854,0.00021917,2]
[312007582,1705543844671,-500.0,0.00021917,2]
[312007584,1705543844680,-500.0,0.00021917,2]
[312007586,1705543844689,-513.89219408,0.00021917,2]
[312007588,1705543844698,-500.0,0.00021917,2]
[312007590,1705543844707,-500.0,0.00021917,2]
[312007592,1705543844716,-500.0,0.00021917,2]
[312007594,1705543844725,-500.0,0.00021917,2]
[312007596,1705543844734,-2649.1,0.00021917,2]
[312007598,1705543844743,-522.34840248,0.00021917,2]
[312007599,1705543844751,-500.0,0.00021917,2]
[312007602,1705543844760,-518.60494444,0.00021917,2]
[312007604,1705543844769,-511.43804945,0.00021917,2]
[312007605,1705543844778,-500.0,0.00021917,2]
[312007607,1705543844787,-500.0,0.00021917,2]
[312007609,1705543844796,-500.0,0.00021917,2]
[312007611,1705543844805,-500.0,0.00021917,2]
[312007614,1705543844815,-984.76,0.00021917,2]
[312007616,1705543844825,-618.23705659,0.00021917,2]
[312007618,1705543844835,-508.85739687,0.00021917,2]
[312007620,1705543844843,-538.77715373,0.00021917,2]
[312007622,1705543844853,-529.889187,0.00021917,2]
[312007624,1705543844862,-500.0,0.00021917,2]
[312007626,1705543844870,-824.72,0.00021917,2]
[312007628,1705543844879,-500.0,0.00021917,2]
[312007630,1705543844888,-500.0,0.00021917,2]
[312007632,1705543844897,-491.94468612,0.00021917,2]
[312007634,1705543844906,-868.11,0.00021917,2]
[312007635,1705543844915,-500.0,0.00021917,2]
[312007637,1705543844924,-505.31830128,0.00021917,2]
[312007639,1705543844933,-500.0,0.00021917,2]
[312007641,1705543844943,-500.0,0.00021917,2]
[312007644,1705543844952,-505.07610966,0.00021917,2]
[312007646,1705543844962,-500.0,0.00021917,2]
[312007648,1705543844971,-509.05205035,0.00021917,2]
[312007650,1705543844979,-500.0,0.00021917,2]
[312007652,1705543844988,-1242.88,0.00021917,5]
[312007654,1705543844997,-281.1148791,0.00021917,2]
[312007656,1705543845006,-500.0,0.00021917,2]
[312007657,1705543845015,-1415.3,0.00021917,2]
[312007660,1705543845024,-500.0,0.00021917,2]
[312007662,1705543845033,-575.92185193,0.00021917,2]
[312007664,1705543845042,-524.3300684,0.00021917,2]
[312007666,1705543845052,-666.4,0.00021917,2]
[312007668,1705543845060,-516.55467352,0.00021917,2]
[312007670,1705543845069,-500.0,0.00021917,5]
[312007671,1705543845079,-500.0,0.00021917,2]
[312007674,1705543845088,-558.34414488,0.00021917,2]
[312007676,1705543845097,-516.74457449,0.00021917,2]
[312007678,1705543845106,-1219.63,0.00021917,2]
[312007680,1705543845115,-500.0,0.00021917,2]
[312007682,1705543845124,-500.0,0.00021917,2]
[312007684,1705543845132,-500.0,0.00021917,2]
[312007686,1705543845141,-500.0,0.00021917,2]
[312007687,1705543845149,-500.0,0.00021917,2]
[312007690,1705543845158,-2292.67,0.00021917,2]
[312007692,1705543845167,-502.95356131,0.00021917,2]
[312007694,1705543845176,-518.79182928,0.00021917,2]
[312007696,1705543845185,-558.6752785,0.00021917,2]
[312007698,1705543845194,-500.0,0.00021917,2]
[312007699,1705543845202,-1582.38,0.00021917,2]
[312007702,1705543845211,-500.0,0.00021917,2]